[Event "Titled Tuesday Blitz July 27 2021"]
[White "Asadli, Vugar"]
[Black "Zhigalko, Sergei"]
[WhiteFideId "13405764"]
[BlackFideId "13502956"]
[WhiteElo "2386"]
[BlackElo "2662"]
[Result "1/2-1/2"]
[Round "04"]
[TimeControl "180+1"]
[Date "2021.07.27"]
[WhiteClock "0:00:20"]
[BlackClock "0:00:05"]

1. e4 {[%clk 0:03:00]}  c5 {[%clk 0:03:00]} 2. Nf3 {[%clk 0:03:00]}  Nc6 {[%clk 0:03:00]} 3. Nc3 {[%clk 0:03:00]}  Nf6 {[%clk 0:03:00]} 4. Bb5 {[%clk 0:03:00]}  Qc7 {[%clk 0:03:00]} 5. O-O {[%clk 0:02:59]}  Nd4 {[%clk 0:03:00]} 6. Nxd4 {[%clk 0:03:00]}  cxd4 {[%clk 0:03:00]} 7. Nd5 {[%clk 0:03:00]}  Nxd5 {[%clk 0:03:01]} 8. exd5 {[%clk 0:03:01]}  Qc5 {[%clk 0:03:02]} 9. c4 {[%clk 0:03:01]}  a6 {[%clk 0:03:02]} 10. Ba4 {[%clk 0:02:58]}  Qxc4 {[%clk 0:03:00]} 11. Bb3 {[%clk 0:02:51]}  Qd3 {[%clk 0:03:01]} 12. Re1 {[%clk 0:02:46]}  e6 {[%clk 0:02:36]} 13. Bc2 {[%clk 0:02:37]}  Qc4 {[%clk 0:02:33]} 14. Be4 {[%clk 0:02:17]}  Be7 {[%clk 0:02:11]} 15. b3 {[%clk 0:02:17]}  Qb4 {[%clk 0:02:04]} 16. Bb2 {[%clk 0:02:12]}  O-O {[%clk 0:02:00]} 17. Rc1 {[%clk 0:02:11]}  d6 {[%clk 0:00:55]} 18. dxe6 {[%clk 0:02:06]}  Bxe6 {[%clk 0:00:54]} 19. Qh5 {[%clk 0:01:43]}  g6 {[%clk 0:00:51]} 20. Qf3 {[%clk 0:01:41]}  Qxd2 {[%clk 0:00:45]} 21. Re2 {[%clk 0:01:32]}  Qg5 {[%clk 0:00:46]} 22. h3 {[%clk 0:01:28]}  d5 {[%clk 0:00:42]} 23. Bd3 {[%clk 0:01:26]}  Rac8 {[%clk 0:00:32]} 24. Rce1 {[%clk 0:01:24]}  Bb4 {[%clk 0:00:30]} 25. Re5 {[%clk 0:01:20]}  Qd2 {[%clk 0:00:11]} 26. R5e2 {[%clk 0:01:13]}  Qh6 {[%clk 0:00:10]} 27. Bxd4 {[%clk 0:01:12]}  Qg5 {[%clk 0:00:04]} 28. Re5 {[%clk 0:01:09]}  Qe7 {[%clk 0:00:03]} 29. R1e2 {[%clk 0:01:05]}  Rc1+ {[%clk 0:00:02]} 30. Kh2 {[%clk 0:01:05]}  Bd6 {[%clk 0:00:03]} 31. g3 {[%clk 0:01:04]}  Bxe5 {[%clk 0:00:03]} 32. Bxe5 {[%clk 0:01:03]}  f6 {[%clk 0:00:04]} 33. Bd4 {[%clk 0:01:03]}  Qf7 {[%clk 0:00:03]} 34. Qe3 {[%clk 0:01:03]}  Rc6 {[%clk 0:00:04]} 35. b4 {[%clk 0:01:02]}  Bd7 {[%clk 0:00:04]} 36. Qf4 {[%clk 0:00:59]}  Re6 {[%clk 0:00:04]} 37. Rc2 {[%clk 0:00:59]}  Rc6 {[%clk 0:00:04]} 38. Re2 {[%clk 0:00:59]}  Re8 {[%clk 0:00:05]} 39. Rxe8+ {[%clk 0:00:53]}  Bxe8 {[%clk 0:00:05]} 40. h4 {[%clk 0:00:51]}  g5 {[%clk 0:00:05]} 41. hxg5 {[%clk 0:00:50]}  Qh5+ {[%clk 0:00:05]} 42. Kg2 {[%clk 0:00:49]}  Qxg5 {[%clk 0:00:05]} 43. Qb8 {[%clk 0:00:47]}  Re6 {[%clk 0:00:03]} 44. Qxb7 {[%clk 0:00:46]}  Qh5 {[%clk 0:00:02]} 45. Qc8 {[%clk 0:00:44]}  Kf7 {[%clk 0:00:02]} 46. Qc7+ {[%clk 0:00:44]}  Re7 {[%clk 0:00:03]} 47. Qf4 {[%clk 0:00:44]}  Bb5 {[%clk 0:00:03]} 48. Qxf6+ {[%clk 0:00:44]}  Ke8 {[%clk 0:00:04]} 49. Bxb5+ {[%clk 0:00:41]}  axb5 {[%clk 0:00:05]} 50. Qc6+ {[%clk 0:00:41]}  Kf7 {[%clk 0:00:05]} 51. Qf6+ {[%clk 0:00:42]}  Ke8 {[%clk 0:00:05]} 52. Bc5 {[%clk 0:00:38]}  Re2 {[%clk 0:00:02]} 53. Qf8+ {[%clk 0:00:37]}  Kd7 {[%clk 0:00:02]} 54. Qd6+ {[%clk 0:00:37]}  Ke8 {[%clk 0:00:03]} 55. Qf8+ {[%clk 0:00:37]}  Kd7 {[%clk 0:00:03]} 56. Qg7+ {[%clk 0:00:38]}  Ke8 {[%clk 0:00:03]} 57. Qg8+ {[%clk 0:00:37]}  Kd7 {[%clk 0:00:03]} 58. Qg7+ {[%clk 0:00:36]}  Ke8 {[%clk 0:00:03]} 59. Qf6 {[%clk 0:00:33]}  Qg6 {[%clk 0:00:03]} 60. Qf8+ {[%clk 0:00:30]}  Kd7 {[%clk 0:00:03]} 61. Kh3 {[%clk 0:00:25]}  Qe6+ {[%clk 0:00:03]} 62. Kh2 {[%clk 0:00:23]}  Qg6 {[%clk 0:00:03]} 63. Qf4 {[%clk 0:00:22]}  Qe4 {[%clk 0:00:03]} 64. Qd6+ {[%clk 0:00:20]}  Ke8 {[%clk 0:00:04]} 65. Qf8+ {[%clk 0:00:20]}  Kd7 {[%clk 0:00:04]} 66. Qf7+ {[%clk 0:00:20]}  Kc8 {[%clk 0:00:04]} 67. Qf8+ {[%clk 0:00:20]}  Kd7 {[%clk 0:00:04]} 68. Qf7+ {[%clk 0:00:20]}  Kc8 {[%clk 0:00:05]} 69. Qg8+ {[%clk 0:00:20]}  Kd7 {[%clk 0:00:05]} 70. Qg7+ {[%clk 0:00:20]}  Ke8 {[%clk 0:00:05]} 71. Qf8+ {[%clk 0:00:20]}  Kd7 {[%clk 0:00:05]} 1/2-1/2


[Site "https://www.chess.com"]

[Event "Titled Tuesday Blitz July 27 2021"]
[White "Begunov, Konstantin"]
[Black "Dowgird, Filip"]
[WhiteFideId "4118510"]
[BlackFideId "1121235"]
[WhiteElo "2262"]
[BlackElo "2209"]
[Result "0-1"]
[Round "04"]
[TimeControl "180+1"]
[Date "2021.07.27"]
[WhiteClock "0:00:02"]
[BlackClock "0:00:44"]

1. d4 {[%clk 0:02:48]}  Nf6 {[%clk 0:02:55]} 2. c4 {[%clk 0:02:48]}  Nc6 {[%clk 0:02:50]} 3. Nc3 {[%clk 0:02:47]}  e5 {[%clk 0:02:48]} 4. d5 {[%clk 0:02:47]}  Ne7 {[%clk 0:02:45]} 5. h4 {[%clk 0:02:47]}  h5 {[%clk 0:02:43]} 6. Nf3 {[%clk 0:02:46]}  Ng6 {[%clk 0:02:43]} 7. Ng5 {[%clk 0:02:34]}  Bb4 {[%clk 0:02:34]} 8. e3 {[%clk 0:02:33]}  Bxc3+ {[%clk 0:02:34]} 9. bxc3 {[%clk 0:02:32]}  d6 {[%clk 0:02:34]} 10. Bd3 {[%clk 0:02:26]}  Nf8 {[%clk 0:02:34]} 11. Qb3 {[%clk 0:02:11]}  b6 {[%clk 0:02:33]} 12. a4 {[%clk 0:02:11]}  a5 {[%clk 0:02:34]} 13. Ba3 {[%clk 0:01:49]}  N8d7 {[%clk 0:02:21]} 14. O-O-O {[%clk 0:01:46]}  Ng4 {[%clk 0:02:15]} 15. Qc2 {[%clk 0:01:38]}  Ndf6 {[%clk 0:02:14]} 16. Rde1 {[%clk 0:01:32]}  Bd7 {[%clk 0:02:13]} 17. f3 {[%clk 0:01:31]}  Nh6 {[%clk 0:02:13]} 18. Qd1 {[%clk 0:01:10]}  Kf8 {[%clk 0:02:04]} 19. Bc2 {[%clk 0:01:09]}  Kg8 {[%clk 0:02:03]} 20. Kb1 {[%clk 0:01:08]}  Bf5 {[%clk 0:01:51]} 21. e4 {[%clk 0:00:57]}  Bd7 {[%clk 0:01:51]} 22. Qd3 {[%clk 0:00:48]}  Qe8 {[%clk 0:01:50]} 23. Qd1 {[%clk 0:00:46]}  Qe7 {[%clk 0:01:48]} 24. Ka2 {[%clk 0:00:45]}  Re8 {[%clk 0:01:47]} 25. Bc1 {[%clk 0:00:45]}  Qd8 {[%clk 0:01:45]} 26. Qd3 {[%clk 0:00:45]}  Re7 {[%clk 0:01:44]} 27. Bd1 {[%clk 0:00:43]}  Qe8 {[%clk 0:01:44]} 28. Ka3 {[%clk 0:00:42]}  Kf8 {[%clk 0:01:42]} 29. Reg1 {[%clk 0:00:42]}  Bc8 {[%clk 0:01:40]} 30. Be2 {[%clk 0:00:41]}  Nd7 {[%clk 0:01:40]} 31. Be3 {[%clk 0:00:37]}  Nb8 {[%clk 0:01:35]} 32. g4 {[%clk 0:00:36]}  hxg4 {[%clk 0:01:33]} 33. fxg4 {[%clk 0:00:37]}  f6 {[%clk 0:01:28]} 34. Nh3 {[%clk 0:00:24]}  Nf7 {[%clk 0:01:27]} 35. g5 {[%clk 0:00:23]}  fxg5 {[%clk 0:01:20]} 36. Nxg5 {[%clk 0:00:23]}  Kg8 {[%clk 0:01:11]} 37. Qd1 {[%clk 0:00:19]}  Nxg5 {[%clk 0:01:07]} 38. Bxg5 {[%clk 0:00:18]}  Rd7 {[%clk 0:00:59]} 39. Bg4 {[%clk 0:00:18]}  Na6 {[%clk 0:00:58]} 40. Bxd7 {[%clk 0:00:16]}  Bxd7 {[%clk 0:00:56]} 41. Bf6 {[%clk 0:00:13]}  Rh7 {[%clk 0:00:54]} 42. Rh2 {[%clk 0:00:11]}  Qf7 {[%clk 0:00:52]} 43. Rf2 {[%clk 0:00:09]}  Nc5 {[%clk 0:00:49]} 44. Qf1 {[%clk 0:00:07]}  Nxe4 {[%clk 0:00:46]} 45. Bxg7 {[%clk 0:00:02]}  Nxf2 {[%clk 0:00:44]} 0-1


[Site "https://www.chess.com"]

[Event "Titled Tuesday Blitz July 27 2021"]
[White "Bernadskiy, Vitaliy"]
[Black "Amburgy, Ryan"]
[WhiteFideId "14100371"]
[BlackFideId "30924820"]
[WhiteElo "2510"]
[BlackElo "2066"]
[Result "1/2-1/2"]
[Round "04"]
[TimeControl "180+1"]
[Date "2021.07.27"]
[WhiteClock "0:00:20"]
[BlackClock "0:00:55"]

1. d4 {[%clk 0:03:00]}  Nf6 {[%clk 0:03:00]} 2. c4 {[%clk 0:03:01]}  e6 {[%clk 0:03:00]} 3. Nc3 {[%clk 0:03:01]}  Bb4 {[%clk 0:03:01]} 4. Qc2 {[%clk 0:03:00]}  d6 {[%clk 0:03:01]} 5. Bd2 {[%clk 0:03:00]}  Nbd7 {[%clk 0:03:01]} 6. a3 {[%clk 0:02:58]}  Bxc3 {[%clk 0:03:01]} 7. Bxc3 {[%clk 0:02:59]}  b6 {[%clk 0:03:01]} 8. e4 {[%clk 0:02:58]}  Bb7 {[%clk 0:03:01]} 9. f3 {[%clk 0:02:58]}  O-O {[%clk 0:02:57]} 10. Ne2 {[%clk 0:02:54]}  e5 {[%clk 0:02:51]} 11. d5 {[%clk 0:02:50]}  a5 {[%clk 0:02:50]} 12. b3 {[%clk 0:02:47]}  g6 {[%clk 0:02:40]} 13. Ng3 {[%clk 0:02:45]}  Ne8 {[%clk 0:02:39]} 14. Be2 {[%clk 0:02:42]}  Ng7 {[%clk 0:02:39]} 15. O-O {[%clk 0:02:41]}  Qh4 {[%clk 0:02:28]} 16. Qd2 {[%clk 0:02:15]}  f5 {[%clk 0:02:09]} 17. exf5 {[%clk 0:02:07]}  Nxf5 {[%clk 0:02:09]} 18. Nxf5 {[%clk 0:02:00]}  Rxf5 {[%clk 0:01:59]} 19. g3 {[%clk 0:02:00]}  Qe7 {[%clk 0:01:58]} 20. f4 {[%clk 0:01:52]}  Raf8 {[%clk 0:01:49]} 21. Bg4 {[%clk 0:01:52]}  R5f6 {[%clk 0:01:50]} 22. Bxd7 {[%clk 0:01:47]}  Qxd7 {[%clk 0:01:50]} 23. fxe5 {[%clk 0:01:47]}  Rxf1+ {[%clk 0:01:31]} 24. Rxf1 {[%clk 0:01:48]}  Rxf1+ {[%clk 0:01:32]} 25. Kxf1 {[%clk 0:01:46]}  Qf5+ {[%clk 0:01:31]} 26. Ke2 {[%clk 0:01:18]}  dxe5 {[%clk 0:01:28]} 27. Qe3 {[%clk 0:01:11]}  a4 {[%clk 0:01:05]} 28. Qxe5 {[%clk 0:00:59]}  Qxe5+ {[%clk 0:00:51]} 29. Bxe5 {[%clk 0:00:58]}  axb3 {[%clk 0:00:52]} 30. Kd3 {[%clk 0:00:59]}  c6 {[%clk 0:00:49]} 31. d6 {[%clk 0:00:52]}  Kf7 {[%clk 0:00:47]} 32. Kc3 {[%clk 0:00:49]}  Ke6 {[%clk 0:00:47]} 33. Kxb3 {[%clk 0:00:43]}  Bc8 {[%clk 0:00:35]} 34. Bf4 {[%clk 0:00:40]}  Bd7 {[%clk 0:00:34]} 35. c5 {[%clk 0:00:40]}  b5 {[%clk 0:00:31]} 36. Kb4 {[%clk 0:00:22]}  Be8 {[%clk 0:00:32]} 37. Ka5 {[%clk 0:00:22]}  Kd7 {[%clk 0:00:32]} 38. Kb6 {[%clk 0:00:20]}  Bf7 {[%clk 0:00:32]} 39. Ka5 {[%clk 0:00:19]}  Bd5 {[%clk 0:00:33]} 40. Kb4 {[%clk 0:00:19]}  Bf3 {[%clk 0:00:33]} 41. Kc3 {[%clk 0:00:20]}  Bd5 {[%clk 0:00:33]} 42. Kd4 {[%clk 0:00:20]}  Bc4 {[%clk 0:00:32]} 43. Ke5 {[%clk 0:00:20]}  h5 {[%clk 0:00:32]} 44. Kf6 {[%clk 0:00:17]}  Bd3 {[%clk 0:00:32]} 45. Kg5 {[%clk 0:00:14]}  Bc2 {[%clk 0:00:33]} 46. h4 {[%clk 0:00:14]}  Bd3 {[%clk 0:00:33]} 47. Bd2 {[%clk 0:00:13]}  Bc2 {[%clk 0:00:34]} 48. Kf4 {[%clk 0:00:13]}  Bb1 {[%clk 0:00:34]} 49. Ke5 {[%clk 0:00:14]}  Bc2 {[%clk 0:00:35]} 50. Kd4 {[%clk 0:00:14]}  Bb1 {[%clk 0:00:35]} 51. Kc3 {[%clk 0:00:14]}  Bf5 {[%clk 0:00:36]} 52. Kb4 {[%clk 0:00:15]}  Be4 {[%clk 0:00:36]} 53. Kc3 {[%clk 0:00:15]}  Bf5 {[%clk 0:00:37]} 54. Kd4 {[%clk 0:00:15]}  Bb1 {[%clk 0:00:38]} 55. Ke5 {[%clk 0:00:15]}  Bf5 {[%clk 0:00:38]} 56. Kf6 {[%clk 0:00:15]}  Bb1 {[%clk 0:00:39]} 57. Kg5 {[%clk 0:00:15]}  Bf5 {[%clk 0:00:39]} 58. Bf4 {[%clk 0:00:15]}  Bb1 {[%clk 0:00:39]} 59. g4 {[%clk 0:00:15]}  hxg4 {[%clk 0:00:40]} 60. Kxg4 {[%clk 0:00:16]}  Bc2 {[%clk 0:00:41]} 61. Kg5 {[%clk 0:00:16]}  Bb1 {[%clk 0:00:42]} 62. Bd2 {[%clk 0:00:17]}  Bc2 {[%clk 0:00:43]} 63. Kf6 {[%clk 0:00:16]}  Bb1 {[%clk 0:00:43]} 64. Ke5 {[%clk 0:00:16]}  Bc2 {[%clk 0:00:44]} 65. Kd4 {[%clk 0:00:17]}  Bb1 {[%clk 0:00:45]} 66. Ke3 {[%clk 0:00:17]}  Bc2 {[%clk 0:00:45]} 67. Bb4 {[%clk 0:00:17]}  Bb1 {[%clk 0:00:46]} 68. Kf4 {[%clk 0:00:17]}  Bc2 {[%clk 0:00:46]} 69. Kg5 {[%clk 0:00:18]}  Bb1 {[%clk 0:00:47]} 70. Kf4 {[%clk 0:00:18]}  Bc2 {[%clk 0:00:47]} 71. Ke5 {[%clk 0:00:18]}  Bb1 {[%clk 0:00:48]} 72. Kf6 {[%clk 0:00:18]}  Bc2 {[%clk 0:00:49]} 73. Kg5 {[%clk 0:00:18]}  Bb1 {[%clk 0:00:49]} 74. h5 {[%clk 0:00:17]}  gxh5 {[%clk 0:00:50]} 75. Kxh5 {[%clk 0:00:18]}  Bc2 {[%clk 0:00:51]} 76. Kg5 {[%clk 0:00:18]}  Ba4 {[%clk 0:00:52]} 77. Kf4 {[%clk 0:00:18]}  Bb3 {[%clk 0:00:53]} 78. Kg5 {[%clk 0:00:18]}  Ba4 {[%clk 0:00:54]} 79. Kf4 {[%clk 0:00:19]}  Bb3 {[%clk 0:00:54]} 80. Kg5 {[%clk 0:00:20]}  Ba4 {[%clk 0:00:55]} 1/2-1/2


[Site "https://www.chess.com"]

[Event "Titled Tuesday Blitz July 27 2021"]
[White "Bortnyk, Olexandr"]
[Black "Libiszewski, Fabien"]
[WhiteFideId "14120828"]
[BlackFideId "616834"]
[WhiteElo "2723"]
[BlackElo "2440"]
[Result "1-0"]
[Round "04"]
[TimeControl "180+1"]
[Date "2021.07.27"]
[WhiteClock "0:00:13"]
[BlackClock "0:00:09"]

1. d4 {[%clk 0:02:59]}  Nf6 {[%clk 0:02:59]} 2. Nc3 {[%clk 0:03:00]}  e6 {[%clk 0:02:59]} 3. e4 {[%clk 0:02:51]}  d5 {[%clk 0:02:59]} 4. Bg5 {[%clk 0:02:51]}  Bb4 {[%clk 0:02:56]} 5. e5 {[%clk 0:02:50]}  h6 {[%clk 0:02:56]} 6. Bc1 {[%clk 0:02:50]}  Nfd7 {[%clk 0:02:51]} 7. Qg4 {[%clk 0:02:47]}  Bf8 {[%clk 0:02:50]} 8. f4 {[%clk 0:02:02]}  c5 {[%clk 0:02:39]} 9. Nf3 {[%clk 0:02:00]}  Nc6 {[%clk 0:02:38]} 10. Be3 {[%clk 0:02:00]}  Qa5 {[%clk 0:02:04]} 11. Be2 {[%clk 0:01:22]}  g6 {[%clk 0:01:49]} 12. O-O {[%clk 0:01:20]}  cxd4 {[%clk 0:01:46]} 13. Nxd4 {[%clk 0:01:20]}  Bc5 {[%clk 0:01:45]} 14. Rad1 {[%clk 0:01:12]}  Nxd4 {[%clk 0:01:33]} 15. Bxd4 {[%clk 0:01:13]}  Bxd4+ {[%clk 0:01:32]} 16. Rxd4 {[%clk 0:01:14]}  Qb6 {[%clk 0:01:08]} 17. Nb5 {[%clk 0:01:13]}  O-O {[%clk 0:01:03]} 18. c3 {[%clk 0:01:11]}  Nb8 {[%clk 0:00:58]} 19. Kh1 {[%clk 0:00:49]}  a6 {[%clk 0:00:58]} 20. Nd6 {[%clk 0:00:48]}  Qxb2 {[%clk 0:00:58]} 21. Bd3 {[%clk 0:00:40]}  Kg7 {[%clk 0:00:38]} 22. f5 {[%clk 0:00:29]}  exf5 {[%clk 0:00:37]} 23. Bxf5 {[%clk 0:00:29]}  Nc6 {[%clk 0:00:24]} 24. Bxc8 {[%clk 0:00:28]}  Nxd4 {[%clk 0:00:24]} 25. Qxd4 {[%clk 0:00:26]}  Qe2 {[%clk 0:00:20]} 26. e6+ {[%clk 0:00:20]}  Kh7 {[%clk 0:00:15]} 27. Kg1 {[%clk 0:00:13]}  Raxc8 {[%clk 0:00:09]} 28. Nxc8 {[%clk 0:00:14]}  Rxc8 {[%clk 0:00:09]} 29. Rxf7+ {[%clk 0:00:13]} 1-0


[Site "https://www.chess.com"]

[Event "Titled Tuesday Blitz July 27 2021"]
[White "Costachi, Mihnea"]
[Black "Tsaruk, Maksim"]
[WhiteFideId "1217518"]
[BlackFideId "13511173"]
[WhiteElo "2482"]
[BlackElo "2184"]
[Result "0-1"]
[Round "04"]
[TimeControl "180+1"]
[Date "2021.07.27"]
[WhiteClock "0:00:09"]
[BlackClock "0:00:04"]

1. d4 {[%clk 0:03:00]}  Nf6 {[%clk 0:02:59]} 2. c4 {[%clk 0:03:01]}  g6 {[%clk 0:02:58]} 3. Nc3 {[%clk 0:03:00]}  d5 {[%clk 0:02:58]} 4. Nf3 {[%clk 0:03:00]}  Bg7 {[%clk 0:02:58]} 5. h4 {[%clk 0:03:01]}  c6 {[%clk 0:02:56]} 6. cxd5 {[%clk 0:03:00]}  cxd5 {[%clk 0:02:55]} 7. Bf4 {[%clk 0:03:01]}  O-O {[%clk 0:02:53]} 8. e3 {[%clk 0:03:01]}  Bg4 {[%clk 0:02:53]} 9. Be2 {[%clk 0:02:58]}  Nc6 {[%clk 0:02:53]} 10. Ne5 {[%clk 0:02:58]}  Bxe2 {[%clk 0:02:52]} 11. Qxe2 {[%clk 0:02:58]}  Nxe5 {[%clk 0:02:49]} 12. Bxe5 {[%clk 0:02:59]}  e6 {[%clk 0:02:47]} 13. O-O {[%clk 0:02:54]}  a6 {[%clk 0:02:46]} 14. Rac1 {[%clk 0:02:54]}  Nd7 {[%clk 0:02:42]} 15. Bxg7 {[%clk 0:02:53]}  Kxg7 {[%clk 0:02:43]} 16. g3 {[%clk 0:02:52]}  Qa5 {[%clk 0:02:40]} 17. h5 {[%clk 0:02:52]}  Rfc8 {[%clk 0:02:39]} 18. Qg4 {[%clk 0:02:49]}  Nf6 {[%clk 0:02:39]} 19. h6+ {[%clk 0:02:48]}  Kxh6 {[%clk 0:02:38]} 20. Qe2 {[%clk 0:02:44]}  Kg7 {[%clk 0:02:37]} 21. Kg2 {[%clk 0:02:42]}  Rc6 {[%clk 0:02:33]} 22. Rh1 {[%clk 0:02:42]}  Rac8 {[%clk 0:02:32]} 23. Rh4 {[%clk 0:02:41]}  b5 {[%clk 0:02:28]} 24. Rch1 {[%clk 0:02:41]}  b4 {[%clk 0:02:28]} 25. Nd1 {[%clk 0:02:40]}  Qxa2 {[%clk 0:02:25]} 26. Qf3 {[%clk 0:02:37]}  Qb1 {[%clk 0:02:24]} 27. Rf4 {[%clk 0:02:36]}  R8c7 {[%clk 0:02:00]} 28. Rxf6 {[%clk 0:02:35]}  Qe4 {[%clk 0:02:01]} 29. Qxe4 {[%clk 0:02:28]}  dxe4 {[%clk 0:02:00]} 30. Rf4 {[%clk 0:02:29]}  f5 {[%clk 0:02:00]} 31. Rfh4 {[%clk 0:02:25]}  h5 {[%clk 0:02:00]} 32. Re1 {[%clk 0:02:24]}  Rc2 {[%clk 0:02:00]} 33. Rhh1 {[%clk 0:02:24]}  a5 {[%clk 0:02:00]} 34. b3 {[%clk 0:02:13]}  Rd2 {[%clk 0:01:54]} 35. Rhf1 {[%clk 0:02:06]}  Rcc2 {[%clk 0:01:37]} 36. Kg1 {[%clk 0:02:03]}  g5 {[%clk 0:01:37]} 37. Kg2 {[%clk 0:01:59]}  Kg6 {[%clk 0:01:35]} 38. Kh3 {[%clk 0:01:59]}  Rd3 {[%clk 0:01:27]} 39. Kg2 {[%clk 0:01:50]}  Rxb3 {[%clk 0:01:26]} 40. Kg1 {[%clk 0:01:51]}  g4 {[%clk 0:01:23]} 41. Kg2 {[%clk 0:01:33]}  a4 {[%clk 0:01:22]} 42. Rh1 {[%clk 0:01:34]}  a3 {[%clk 0:01:21]} 43. Rh2 {[%clk 0:01:27]}  a2 {[%clk 0:01:17]} 44. Reh1 {[%clk 0:01:28]}  a1=Q {[%clk 0:01:16]} 45. Rxh5 {[%clk 0:01:29]}  Kf6 {[%clk 0:00:54]} 46. Rh7 {[%clk 0:01:27]}  Rxf2+ {[%clk 0:00:44]} 47. Kxf2 {[%clk 0:01:16]}  Rb2+ {[%clk 0:00:43]} 48. Ke1 {[%clk 0:01:13]}  Rg2 {[%clk 0:00:16]} 49. R1h6+ {[%clk 0:00:54]}  Kg5 {[%clk 0:00:16]} 50. Rh5+ {[%clk 0:00:50]}  Kg6 {[%clk 0:00:16]} 51. R5h6+ {[%clk 0:00:49]}  Kg5 {[%clk 0:00:17]} 52. Rh5+ {[%clk 0:00:50]}  Kf6 {[%clk 0:00:18]} 53. Rh1 {[%clk 0:00:33]}  Kg5 {[%clk 0:00:19]} 54. R7h5+ {[%clk 0:00:17]}  Kg6 {[%clk 0:00:17]} 55. Rh7 {[%clk 0:00:17]}  Rg1+ {[%clk 0:00:17]} 56. Rxg1 {[%clk 0:00:14]}  Kxh7 {[%clk 0:00:16]} 57. Rg2 {[%clk 0:00:15]}  b3 {[%clk 0:00:16]} 58. Rb2 {[%clk 0:00:15]}  Qa5+ {[%clk 0:00:15]} 59. Ke2 {[%clk 0:00:14]}  Qb5+ {[%clk 0:00:14]} 60. Kf2 {[%clk 0:00:14]}  Qd3 {[%clk 0:00:14]} 61. Ke1 {[%clk 0:00:14]}  Kg7 {[%clk 0:00:12]} 62. Rd2 {[%clk 0:00:14]}  Qc4 {[%clk 0:00:10]} 63. Rb2 {[%clk 0:00:14]}  Kf6 {[%clk 0:00:09]} 64. Rh2 {[%clk 0:00:14]}  e5 {[%clk 0:00:08]} 65. dxe5+ {[%clk 0:00:12]}  Kxe5 {[%clk 0:00:09]} 66. Rd2 {[%clk 0:00:13]}  Qb4 {[%clk 0:00:06]} 67. Ke2 {[%clk 0:00:12]}  Kf6 {[%clk 0:00:06]} 68. Nb2 {[%clk 0:00:12]}  Qb8 {[%clk 0:00:06]} 69. Kf2 {[%clk 0:00:12]}  Qc7 {[%clk 0:00:05]} 70. Ke2 {[%clk 0:00:11]}  Qxg3 {[%clk 0:00:05]} 71. Nc4 {[%clk 0:00:12]}  Qc7 {[%clk 0:00:05]} 72. Nb2 {[%clk 0:00:10]}  Qc6 {[%clk 0:00:04]} 73. Kf2 {[%clk 0:00:09]}  Kg5 {[%clk 0:00:04]} 74. Kg3 {[%clk 0:00:09]}  Qc2 {[%clk 0:00:04]} 75. Re2 {[%clk 0:00:09]}  Qxe2 {[%clk 0:00:04]} 0-1


[Site "https://www.chess.com"]

[Event "Titled Tuesday Blitz July 27 2021"]
[White "Dardha, Daniel"]
[Black "Khusnutdinov, Rustam"]
[WhiteFideId "240990"]
[BlackFideId "13701703"]
[WhiteElo "2489"]
[BlackElo "2571"]
[Result "0-1"]
[Round "04"]
[TimeControl "180+1"]
[Date "2021.07.27"]
[WhiteClock "0:00:13"]
[BlackClock "0:00:51"]

1. c4 {[%clk 0:03:00]}  e5 {[%clk 0:02:50]} 2. g3 {[%clk 0:02:59]}  Nc6 {[%clk 0:02:49]} 3. Bg2 {[%clk 0:02:54]}  Bc5 {[%clk 0:02:49]} 4. Nc3 {[%clk 0:02:51]}  d6 {[%clk 0:02:48]} 5. a3 {[%clk 0:02:47]}  a6 {[%clk 0:02:47]} 6. b4 {[%clk 0:02:46]}  Ba7 {[%clk 0:02:47]} 7. Nf3 {[%clk 0:02:46]}  Nf6 {[%clk 0:02:44]} 8. O-O {[%clk 0:02:45]}  O-O {[%clk 0:02:44]} 9. d3 {[%clk 0:02:43]}  h6 {[%clk 0:02:44]} 10. Rb1 {[%clk 0:02:41]}  Ne7 {[%clk 0:02:44]} 11. a4 {[%clk 0:02:38]}  Be6 {[%clk 0:02:42]} 12. b5 {[%clk 0:02:37]}  axb5 {[%clk 0:02:34]} 13. axb5 {[%clk 0:02:38]}  Qc8 {[%clk 0:02:34]} 14. Be3 {[%clk 0:02:11]}  Bxe3 {[%clk 0:02:26]} 15. fxe3 {[%clk 0:02:12]}  Bh3 {[%clk 0:02:14]} 16. e4 {[%clk 0:02:00]}  Bxg2 {[%clk 0:02:05]} 17. Kxg2 {[%clk 0:02:01]}  Ng4 {[%clk 0:02:06]} 18. Qc1 {[%clk 0:02:01]}  f5 {[%clk 0:02:06]} 19. h3 {[%clk 0:01:59]}  Nf6 {[%clk 0:02:03]} 20. exf5 {[%clk 0:01:56]}  Nxf5 {[%clk 0:02:02]} 21. e4 {[%clk 0:01:54]}  Ne7 {[%clk 0:01:51]} 22. Ra1 {[%clk 0:01:50]}  Nd7 {[%clk 0:01:45]} 23. Qe3 {[%clk 0:01:40]}  Nc5 {[%clk 0:01:44]} 24. d4 {[%clk 0:01:35]}  Rxa1 {[%clk 0:01:36]} 25. Rxa1 {[%clk 0:01:35]}  Nb3 {[%clk 0:01:36]} 26. Rb1 {[%clk 0:01:14]}  Rxf3 {[%clk 0:01:25]} 27. Kxf3 {[%clk 0:00:51]}  exd4 {[%clk 0:01:25]} 28. Qd3 {[%clk 0:00:45]}  Nc5 {[%clk 0:00:57]} 29. Qxd4 {[%clk 0:00:43]}  Qxh3 {[%clk 0:00:57]} 30. Nd5 {[%clk 0:00:36]}  Ng6 {[%clk 0:00:53]} 31. Nf4 {[%clk 0:00:18]}  Nxf4 {[%clk 0:00:52]} 32. Qd5+ {[%clk 0:00:13]}  Nxd5 {[%clk 0:00:51]} 0-1


[Site "https://www.chess.com"]

[Event "Titled Tuesday Blitz July 27 2021"]
[White "Dushyant Sharma"]
[Black "Bok, Benjamin"]
[WhiteFideId "25065130"]
[BlackFideId "1017063"]
[WhiteElo "2019"]
[BlackElo "2658"]
[Result "0-1"]
[Round "04"]
[TimeControl "180+1"]
[Date "2021.07.27"]
[WhiteClock "0:01:14"]
[BlackClock "0:01:45"]

1. e4 {[%clk 0:03:00]}  c5 {[%clk 0:02:58]} 2. Nf3 {[%clk 0:03:01]}  d6 {[%clk 0:02:58]} 3. d4 {[%clk 0:03:01]}  cxd4 {[%clk 0:02:59]} 4. Nxd4 {[%clk 0:03:02]}  Nf6 {[%clk 0:03:00]} 5. Nc3 {[%clk 0:03:02]}  a6 {[%clk 0:03:00]} 6. f4 {[%clk 0:03:02]}  e5 {[%clk 0:03:00]} 7. Nf3 {[%clk 0:03:02]}  Nbd7 {[%clk 0:03:00]} 8. Bd3 {[%clk 0:03:02]}  b5 {[%clk 0:02:59]} 9. a3 {[%clk 0:03:01]}  Bb7 {[%clk 0:03:00]} 10. O-O {[%clk 0:02:58]}  Be7 {[%clk 0:03:00]} 11. Kh1 {[%clk 0:02:56]}  O-O {[%clk 0:03:00]} 12. Qe1 {[%clk 0:02:54]}  Qc7 {[%clk 0:02:58]} 13. Bd2 {[%clk 0:02:51]}  Rfe8 {[%clk 0:02:58]} 14. fxe5 {[%clk 0:02:46]}  dxe5 {[%clk 0:02:58]} 15. Nh4 {[%clk 0:02:47]}  g6 {[%clk 0:02:45]} 16. Bg5 {[%clk 0:02:39]}  Nh5 {[%clk 0:02:39]} 17. Bxe7 {[%clk 0:02:36]}  Rxe7 {[%clk 0:02:39]} 18. Rd1 {[%clk 0:02:16]}  Nf4 {[%clk 0:02:34]} 19. Ne2 {[%clk 0:02:16]}  Nc5 {[%clk 0:02:27]} 20. Nxf4 {[%clk 0:02:12]}  exf4 {[%clk 0:02:28]} 21. Qf2 {[%clk 0:02:08]}  Bxe4 {[%clk 0:02:17]} 22. Qxf4 {[%clk 0:02:03]}  Qxf4 {[%clk 0:02:14]} 23. Rxf4 {[%clk 0:02:04]}  Bxd3 {[%clk 0:02:14]} 24. cxd3 {[%clk 0:02:03]}  Nxd3 {[%clk 0:02:15]} 25. Rf6 {[%clk 0:01:47]}  Nxb2 {[%clk 0:02:13]} 26. Ra1 {[%clk 0:01:47]}  Kg7 {[%clk 0:02:05]} 27. Rff1 {[%clk 0:01:42]}  Rd8 {[%clk 0:01:59]} 28. h3 {[%clk 0:01:39]}  Red7 {[%clk 0:01:55]} 29. Kh2 {[%clk 0:01:34]}  Rd1 {[%clk 0:01:55]} 30. Nf3 {[%clk 0:01:29]}  Rxf1 {[%clk 0:01:50]} 31. Rxf1 {[%clk 0:01:28]}  Nc4 {[%clk 0:01:51]} 32. Ra1 {[%clk 0:01:25]}  Rd3 {[%clk 0:01:47]} 33. a4 {[%clk 0:01:24]}  b4 {[%clk 0:01:48]} 34. Rc1 {[%clk 0:01:21]}  Rc3 {[%clk 0:01:46]} 35. Rb1 {[%clk 0:01:14]}  b3 {[%clk 0:01:45]} 36. Nd4 {[%clk 0:01:14]}  b2 {[%clk 0:01:45]} 0-1


[Site "https://www.chess.com"]